[Event "Late-Titled-Tuesday-Blitz-September-12-2023"]
[Site "Chess.com"]
[Date "2023.09.12"]
[Round "10"]
[White "FredyMatsuura"]
[Black "Der_Honigdachs"]
[Result "1-0"]
[WhiteElo "2376"]
[BlackElo "2523"]
[TimeControl "180+1"]
[EndTime "15:51:50 PDT"]
[Termination "FredyMatsuura won by resignation"]

1. d4 {[%clk 0:03:00.9]} 1... g6 {[%clk 0:02:55.9]} 2. e4 {[%clk 0:03:00.3]}
2... Bg7 {[%clk 0:02:56.2]} 3. Nf3 {[%clk 0:02:59]} 3... d6 {[%clk 0:02:56.8]}
4. Bc4 {[%clk 0:02:59]} 4... e6 {[%clk 0:02:54.5]} 5. O-O {[%clk 0:02:58.4]}
5... Ne7 {[%clk 0:02:55.4]} 6. Re1 {[%clk 0:02:58.1]} 6... O-O {[%clk
0:02:53.3]} 7. c3 {[%clk 0:02:58.5]} 7... a6 {[%clk 0:02:51.3]} 8. a4 {[%clk
0:02:58.5]} 8... b6 {[%clk 0:02:51.8]} 9. Nbd2 {[%clk 0:02:56.7]} 9... Bb7
{[%clk 0:02:52.6]} 10. Qe2 {[%clk 0:02:51.7]} 10... Nd7 {[%clk 0:02:52.5]} 11.
h3 {[%clk 0:02:42.8]} 11... c5 {[%clk 0:02:48.7]} 12. Nf1 {[%clk 0:02:39.5]}
12... cxd4 {[%clk 0:02:46]} 13. cxd4 {[%clk 0:02:40.4]} 13... d5 {[%clk
0:02:45.4]} 14. exd5 {[%clk 0:02:27.2]} 14... Nxd5 {[%clk 0:02:46.1]} 15. Ne5
{[%clk 0:02:23.9]} 15... Nxe5 {[%clk 0:02:33.3]} 16. dxe5 {[%clk 0:02:23.6]}
16... Qh4 {[%clk 0:02:33.5]} 17. Bd3 {[%clk 0:02:07.1]} 17... Nf4 {[%clk
0:02:24.8]} 18. Bxf4 {[%clk 0:02:01.3]} 18... Qxf4 {[%clk 0:02:25.4]} 19. Ng3
{[%clk 0:01:58.3]} 19... h5 {[%clk 0:02:20.8]} 20. b3 {[%clk 0:01:50.9]} 20...
h4 {[%clk 0:02:18.2]} 21. Nf1 {[%clk 0:01:47.3]} 21... Rfd8 {[%clk 0:02:16.7]}
22. Rad1 {[%clk 0:01:44]} 22... Qg5 {[%clk 0:02:07.5]} 23. Qg4 {[%clk
0:01:39.5]} 23... Qxg4 {[%clk 0:02:05.2]} 24. hxg4 {[%clk 0:01:40.4]} 24... Rd4
{[%clk 0:02:02.3]} 25. Bc4 {[%clk 0:01:20]} 25... Rxd1 {[%clk 0:01:52.3]} 26.
Rxd1 {[%clk 0:01:20.9]} 26... Bxe5 {[%clk 0:01:51.4]} 27. Ne3 {[%clk 0:01:14]}
27... Bc6 {[%clk 0:01:49.7]} 28. Rc1 {[%clk 0:01:13.5]} 28... Be8 {[%clk
0:01:45.5]} 29. Be2 {[%clk 0:01:11.8]} 29... g5 {[%clk 0:01:39.8]} 30. Nc4
{[%clk 0:01:11.3]} 30... Bd4 {[%clk 0:01:37.8]} 31. Rd1 {[%clk 0:01:04.4]} 31...
e5 {[%clk 0:01:34.6]} 32. Bf3 {[%clk 0:01:04.5]} 32... Rd8 {[%clk 0:01:31.4]}
33. Kf1 {[%clk 0:01:03.9]} 33... f6 {[%clk 0:01:28.3]} 34. Bb7 {[%clk
0:00:59.2]} 34... b5 {[%clk 0:01:26.8]} 35. axb5 {[%clk 0:00:55.8]} 35... axb5
{[%clk 0:01:18.1]} 36. Ne3 {[%clk 0:00:47.9]} 36... Bf7 {[%clk 0:01:17.3]} 37.
Rd3 {[%clk 0:00:42.6]} 37... Bg6 {[%clk 0:00:58.5]} 38. Nf5 {[%clk 0:00:41.3]}
38... b4 {[%clk 0:00:42.3]} 39. Ne7+ {[%clk 0:00:40.5]} 39... Kf7 {[%clk
0:00:41.7]} 40. Nxg6 {[%clk 0:00:41.1]} 40... Kxg6 {[%clk 0:00:42.4]} 41. Be4+
{[%clk 0:00:38.5]} 41... Kf7 {[%clk 0:00:41.9]} 42. Ke2 {[%clk 0:00:36.1]} 42...
Rc8 {[%clk 0:00:41.3]} 43. Bd5+ {[%clk 0:00:34]} 43... Ke7 {[%clk 0:00:40.5]}
44. Bc4 {[%clk 0:00:33.9]} 44... Ra8 {[%clk 0:00:40.6]} 45. Rd2 {[%clk
0:00:32.4]} 45... Ra1 {[%clk 0:00:40]} 46. Kf3 {[%clk 0:00:30.9]} 46... Rc1
{[%clk 0:00:22.2]} 47. Ra2 {[%clk 0:00:29.6]} 47... Kd7 {[%clk 0:00:21.2]} 48.
Ke4 {[%clk 0:00:27.5]} 48... Rxc4 {[%clk 0:00:16.5]} 49. bxc4 {[%clk 0:00:27]}
49... b3 {[%clk 0:00:17.4]} 50. Ra5 {[%clk 0:00:22.7]} 50... Bxf2 {[%clk
0:00:11.5]} 51. Rb5 {[%clk 0:00:20.5]} 51... Kc6 {[%clk 0:00:10.6]} 52. Rxb3
{[%clk 0:00:20.3]} 52... Kc5 {[%clk 0:00:11.5]} 53. Rf3 {[%clk 0:00:20.9]} 53...
Bg3 {[%clk 0:00:10.9]} 54. Kd3 {[%clk 0:00:20.2]} 54... Bf4 {[%clk 0:00:05.8]}
55. Rf1 {[%clk 0:00:19.2]} 55... e4+ {[%clk 0:00:04.8]} 56. Kxe4 {[%clk
0:00:19]} 56... Kxc4 {[%clk 0:00:05.7]} 57. Kf5 {[%clk 0:00:19.3]} 57... Be5
{[%clk 0:00:06.4]} 58. Rd1 {[%clk 0:00:18.5]} 58... Bc3 {[%clk 0:00:05]} 59. Rd8
{[%clk 0:00:18]} 59... Be5 {[%clk 0:00:05.6]} 60. Rd1 {[%clk 0:00:17.7]} 60...
Kc3 {[%clk 0:00:05.8]} 61. Ke6 {[%clk 0:00:14.9]} 61... Kc2 {[%clk 0:00:06.4]}
62. Rd8 {[%clk 0:00:13.5]} 62... Kc3 {[%clk 0:00:05.7]} 63. Kf5 {[%clk
0:00:12.9]} 63... Kc4 {[%clk 0:00:06.1]} 64. Ke6 {[%clk 0:00:13.3]} 64... Bb2
{[%clk 0:00:05.9]} 65. Rd6 {[%clk 0:00:12.4]} 65... Kc5 {[%clk 0:00:05.7]} 66.
Ke7 {[%clk 0:00:12]} 66... Ba3 {[%clk 0:00:03.3]} 67. Rxf6 {[%clk 0:00:11.4]}
67... Kd5+ {[%clk 0:00:04.2]} 68. Kf7 {[%clk 0:00:11]} 68... Ke4 {[%clk
0:00:05.1]} 69. Rf5 {[%clk 0:00:11.1]} 69... Bc1 {[%clk 0:00:06]} 70. Kg6 {[%clk
0:00:11.2]} 70... Ke3 {[%clk 0:00:06.3]} 71. Kxg5 {[%clk 0:00:10.7]} 71... Ke4+
{[%clk 0:00:06.6]} 72. Kxh4 {[%clk 0:00:11.2]} 72... Bd2 {[%clk 0:00:06.7]} 73.
Kh5 {[%clk 0:00:11.7]} 73... Be1 {[%clk 0:00:07.6]} 74. Rf1 {[%clk 0:00:12]}
74... Bd2 {[%clk 0:00:08.1]} 75. g5 {[%clk 0:00:12.5]} 75... Be3 {[%clk
0:00:09]} 76. Kh6 {[%clk 0:00:12.7]} 1-0

[Event "Late-Titled-Tuesday-Blitz-September-12-2023"]
[Site "Chess.com"]
[Date "2023.09.12"]
[Round "10"]
[White "RaphaeI"]
[Black "OYAcosta"]
[Result "1-0"]
[WhiteElo "2576"]
[BlackElo "2238"]
[TimeControl "180+1"]
[EndTime "15:51:52 PDT"]
[Termination "RaphaeI won by checkmate"]

1. c4 {[%clk 0:03:00.9]} 1... c6 {[%clk 0:02:59.9]} 2. d4 {[%clk 0:02:58.3]}
2... d5 {[%clk 0:03:00.8]} 3. Nf3 {[%clk 0:02:58.7]} 3... Nf6 {[%clk 0:03:00.8]}
4. e3 {[%clk 0:02:59]} 4... a6 {[%clk 0:03:01]} 5. Nc3 {[%clk 0:02:54.4]} 5...
Bf5 {[%clk 0:03:00.6]} 6. Bd2 {[%clk 0:02:48.2]} 6... e6 {[%clk 0:03:00.4]} 7.
Nh4 {[%clk 0:02:46.7]} 7... Bg4 {[%clk 0:02:59.8]} 8. f3 {[%clk 0:02:46.5]} 8...
Bh5 {[%clk 0:02:59.9]} 9. g3 {[%clk 0:01:54.5]} 9... Be7 {[%clk 0:02:57.6]} 10.
Be2 {[%clk 0:01:46]} 10... O-O {[%clk 0:02:53.9]} 11. O-O {[%clk 0:01:45]} 11...
Nfd7 {[%clk 0:02:53.8]} 12. Ng2 {[%clk 0:01:44.7]} 12... Bg6 {[%clk 0:02:54.1]}
13. Nf4 {[%clk 0:01:44.6]} 13... Bd6 {[%clk 0:02:54.2]} 14. Nxg6 {[%clk
0:01:44.3]} 14... fxg6 {[%clk 0:02:50.8]} 15. c5 {[%clk 0:01:44.3]} 15... Bc7
{[%clk 0:02:48]} 16. f4 {[%clk 0:01:44.9]} 16... Nf6 {[%clk 0:02:46.7]} 17. b4
{[%clk 0:01:42.1]} 17... Nbd7 {[%clk 0:02:46.2]} 18. Bd3 {[%clk 0:01:36.5]}
18... Rf7 {[%clk 0:02:28.9]} 19. g4 {[%clk 0:01:32.6]} 19... Nf8 {[%clk
0:02:28.6]} 20. g5 {[%clk 0:01:30.7]} 20... Nh5 {[%clk 0:02:24.4]} 21. Be2
{[%clk 0:01:27]} 21... Qe8 {[%clk 0:02:07.8]} 22. a4 {[%clk 0:01:24.4]} 22... h6
{[%clk 0:01:56.4]} 23. gxh6 {[%clk 0:00:48.3]} 23... gxh6 {[%clk 0:01:56.5]} 24.
b5 {[%clk 0:00:49.2]} 24... Ng7 {[%clk 0:01:51.8]} 25. bxa6 {[%clk 0:00:39.5]}
25... bxa6 {[%clk 0:01:51.5]} 26. Kh1 {[%clk 0:00:37.5]} 26... Nf5 {[%clk
0:01:49.1]} 27. Rg1 {[%clk 0:00:37.2]} 27... Rg7 {[%clk 0:01:43.1]} 28. Qf1
{[%clk 0:00:33.4]} 28... Nh7 {[%clk 0:01:35]} 29. Bxa6 {[%clk 0:00:30.2]} 29...
Nf6 {[%clk 0:01:34.9]} 30. Bd3 {[%clk 0:00:29.6]} 30... h5 {[%clk 0:01:27.3]}
31. Nd1 {[%clk 0:00:22.6]} 31... Qe7 {[%clk 0:01:19.4]} 32. Nf2 {[%clk
0:00:21.3]} 32... Ba5 {[%clk 0:01:11.4]} 33. Bxa5 {[%clk 0:00:18.8]} 33... Rxa5
{[%clk 0:01:11.3]} 34. Qe1 {[%clk 0:00:19.5]} 34... Qa7 {[%clk 0:01:08.1]} 35.
Bc2 {[%clk 0:00:19.7]} 35... Nh4 {[%clk 0:01:03.9]} 36. Qe2 {[%clk 0:00:16.8]}
36... Qa6 {[%clk 0:00:57.9]} 37. Qxa6 {[%clk 0:00:15.6]} 37... Rxa6 {[%clk
0:00:58.2]} 38. a5 {[%clk 0:00:15.3]} 38... Rga7 {[%clk 0:00:51]} 39. Bxg6
{[%clk 0:00:11.2]} 39... Kf8 {[%clk 0:00:44.5]} 40. Nd3 {[%clk 0:00:04.5]} 40...
Rxa5 {[%clk 0:00:41.1]} 41. Rxa5 {[%clk 0:00:05.4]} 41... Rxa5 {[%clk
0:00:41.6]} 42. Ne5 {[%clk 0:00:06.3]} 42... Ra6 {[%clk 0:00:37]} 43. Bd3 {[%clk
0:00:05.6]} 43... Ra3 {[%clk 0:00:33.4]} 44. Rd1 {[%clk 0:00:05]} 44... Ng4
{[%clk 0:00:28.5]} 45. Nxg4 {[%clk 0:00:02.6]} 45... hxg4 {[%clk 0:00:29.4]} 46.
Be2 {[%clk 0:00:02.1]} 46... Rxe3 {[%clk 0:00:27.6]} 47. Bxg4 {[%clk 0:00:02.8]}
47... Ng6 {[%clk 0:00:26.7]} 48. Kg1 {[%clk 0:00:02.4]} 48... Nxf4 {[%clk
0:00:26.9]} 49. Kf2 {[%clk 0:00:03]} 49... Ra3 {[%clk 0:00:24.2]} 50. Rb1 {[%clk
0:00:03.1]} 50... Ke7 {[%clk 0:00:23.8]} 51. Rb6 {[%clk 0:00:03.1]} 51... Kd7
{[%clk 0:00:21.1]} 52. Rb7+ {[%clk 0:00:03.2]} 52... Ke8 {[%clk 0:00:20.8]} 53.
Rc7 {[%clk 0:00:03.7]} 53... Ra6 {[%clk 0:00:20.4]} 54. Kg3 {[%clk 0:00:04.2]}
54... Nd3 {[%clk 0:00:18]} 55. Bxe6 {[%clk 0:00:03.9]} 55... Kd8 {[%clk
0:00:15]} 56. Rd7+ {[%clk 0:00:03.8]} 56... Ke8 {[%clk 0:00:15.1]} 57. h4 {[%clk
0:00:03.7]} 57... Ra3 {[%clk 0:00:14.8]} 58. Kg4 {[%clk 0:00:04.3]} 58... Nf2+
{[%clk 0:00:14.2]} 59. Kg5 {[%clk 0:00:03.9]} 59... Rg3+ {[%clk 0:00:14.7]} 60.
Kh6 {[%clk 0:00:03.3]} 60... Ne4 {[%clk 0:00:14.9]} 61. Rc7 {[%clk 0:00:02.8]}
61... Nf6 {[%clk 0:00:09]} 62. Rxc6 {[%clk 0:00:02.4]} 62... Ke7 {[%clk
0:00:09.2]} 63. Bf5 {[%clk 0:00:01.5]} 63... Rf3 {[%clk 0:00:09]} 64. Re6+
{[%clk 0:00:01.4]} 64... Kf7 {[%clk 0:00:09.2]} 65. Re5 {[%clk 0:00:01.8]} 65...
Ng8+ {[%clk 0:00:05.9]} 66. Kg5 {[%clk 0:00:01.8]} 66... Rg3+ {[%clk 0:00:06]}
67. Kf4 {[%clk 0:00:02]} 67... Rg1 {[%clk 0:00:04.6]} 68. Rxd5 {[%clk
0:00:01.3]} 68... Kf6 {[%clk 0:00:04.9]} 69. Rd6+ {[%clk 0:00:01.7]} 69... Ke7
{[%clk 0:00:05.1]} 70. Rd7+ {[%clk 0:00:02.1]} 70... Kf6 {[%clk 0:00:05.3]} 71.
Rd6+ {[%clk 0:00:02.6]} 71... Ke7 {[%clk 0:00:05.9]} 72. Bh3 {[%clk 0:00:03]}
72... Nf6 {[%clk 0:00:05.6]} 73. Re6+ {[%clk 0:00:03.1]} 73... Kf7 {[%clk
0:00:05.9]} 74. Ke5 {[%clk 0:00:03.8]} 74... Re1+ {[%clk 0:00:04.7]} 75. Kd6
{[%clk 0:00:03.2]} 75... Ne8+ {[%clk 0:00:02.5]} 76. Rxe8 {[%clk 0:00:03.6]}
76... Kxe8 {[%clk 0:00:02.7]} 77. c6 {[%clk 0:00:04.5]} 77... Kd8 {[%clk
0:00:03.1]} 78. c7+ {[%clk 0:00:04.2]} 78... Ke8 {[%clk 0:00:03.2]} 79. c8=Q+
{[%clk 0:00:05.1]} 79... Kf7 {[%clk 0:00:03.9]} 80. Qf5+ {[%clk 0:00:05.3]}
80... Kg7 {[%clk 0:00:04.1]} 81. Qg5+ {[%clk 0:00:05.6]} 81... Kh7 {[%clk
0:00:04.3]} 82. Qh5+ {[%clk 0:00:05.7]} 82... Kg7 {[%clk 0:00:04.6]} 83. Bf5
{[%clk 0:00:06]} 83... Kf6 {[%clk 0:00:02.8]} 84. Qg6# {[%clk 0:00:06.1]} 1-0

[Event "Late-Titled-Tuesday-Blitz-September-12-2023"]
[Site "Chess.com"]
[Date "2023.09.12"]
[Round "10"]
[White "ural58"]
[Black "chessdjw"]
[Result "1/2-1/2"]
[WhiteElo "2553"]
[BlackElo "2718"]
[TimeControl "180+1"]
[EndTime "15:52:24 PDT"]
[Termination "Game drawn - insufficient material"]

1. e4 {[%clk 0:02:57.1]} 1... e5 {[%clk 0:02:59.9]} 2. Nf3 {[%clk 0:02:56.4]}
2... Nc6 {[%clk 0:03:00.5]} 3. Bc4 {[%clk 0:02:55.6]} 3... Nf6 {[%clk 0:03:01]}
4. Ng5 {[%clk 0:02:55.2]} 4... d5 {[%clk 0:03:01]} 5. exd5 {[%clk 0:02:55.1]}
5... b5 {[%clk 0:02:56.7]} 6. Bf1 {[%clk 0:02:40.9]} 6... Nxd5 {[%clk
0:02:37.7]} 7. Bxb5 {[%clk 0:02:29.4]} 7... Bb7 {[%clk 0:02:36.2]} 8. d4 {[%clk
0:02:06.9]} 8... Nf6 {[%clk 0:01:30.5]} 9. Bc4 {[%clk 0:01:52.1]} 9... Qxd4
{[%clk 0:01:29.2]} 10. Bxf7+ {[%clk 0:01:38.8]} 10... Ke7 {[%clk 0:01:28.8]} 11.
Qe2 {[%clk 0:01:17.5]} 11... h6 {[%clk 0:01:23.9]} 12. Nf3 {[%clk 0:01:17.4]}
12... Qg4 {[%clk 0:00:21]} 13. Bb3 {[%clk 0:01:16.8]} 13... Rd8 {[%clk
0:00:06.6]} 14. Be3 {[%clk 0:01:06.8]} 14... Kd7 {[%clk 0:00:03.4]} 15. Nbd2
{[%clk 0:01:04.6]} 15... Kc8 {[%clk 0:00:02.5]} 16. O-O-O {[%clk 0:01:04.2]}
16... Kb8 {[%clk 0:00:03]} 17. Rhg1 {[%clk 0:00:56.4]} 17... Qg6 {[%clk
0:00:03.1]} 18. Nh4 {[%clk 0:00:50]} 18... Qh7 {[%clk 0:00:02.5]} 19. Nc4 {[%clk
0:00:40.8]} 19... Nd4 {[%clk 0:00:02.8]} 20. Bxd4 {[%clk 0:00:40.4]} 20... exd4
{[%clk 0:00:03.7]} 21. Na5 {[%clk 0:00:39.1]} 21... c6 {[%clk 0:00:02.7]} 22.
Nxb7 {[%clk 0:00:21.2]} 22... Kxb7 {[%clk 0:00:03.6]} 23. Bc4 {[%clk 0:00:21.7]}
23... Qe4 {[%clk 0:00:03.6]} 24. g3 {[%clk 0:00:20.4]} 24... Qxe2 {[%clk
0:00:03]} 25. Bxe2 {[%clk 0:00:20.7]} 25... Bb4 {[%clk 0:00:03.1]} 26. Bd3
{[%clk 0:00:18.6]} 26... Rhe8 {[%clk 0:00:03.5]} 27. a3 {[%clk 0:00:19]} 27...
Bc5 {[%clk 0:00:03.7]} 28. Nf5 {[%clk 0:00:19.4]} 28... Rd7 {[%clk 0:00:03.4]}
29. Rge1 {[%clk 0:00:18.6]} 29... a5 {[%clk 0:00:02.7]} 30. Rxe8 {[%clk
0:00:17.8]} 30... Nxe8 {[%clk 0:00:03.6]} 31. Re1 {[%clk 0:00:17.6]} 31... Nd6
{[%clk 0:00:03.9]} 32. Nh4 {[%clk 0:00:15]} 32... g5 {[%clk 0:00:03.8]} 33. Nf3
{[%clk 0:00:14.2]} 33... Bb6 {[%clk 0:00:04.2]} 34. Ne5 {[%clk 0:00:14.2]} 34...
Re7 {[%clk 0:00:04.7]} 35. Re2 {[%clk 0:00:12.9]} 35... c5 {[%clk 0:00:04.7]}
36. Ng6 {[%clk 0:00:12.4]} 36... Rxe2 {[%clk 0:00:04.6]} 37. Bxe2 {[%clk
0:00:12.8]} 37... c4 {[%clk 0:00:05.3]} 38. Bf3+ {[%clk 0:00:12.7]} 38... Kc7
{[%clk 0:00:05.5]} 39. Kd2 {[%clk 0:00:12.9]} 39... d3 {[%clk 0:00:05.9]} 40.
cxd3 {[%clk 0:00:12.7]} 40... Bxf2 {[%clk 0:00:06.5]} 41. d4 {[%clk 0:00:11]}
41... Bxd4 {[%clk 0:00:06.5]} 42. Kc2 {[%clk 0:00:09.6]} 42... Bg1 {[%clk
0:00:06.7]} 43. h4 {[%clk 0:00:09]} 43... Bh2 {[%clk 0:00:07.3]} 44. g4 {[%clk
0:00:08.7]} 44... Kd7 {[%clk 0:00:07.1]} 45. hxg5 {[%clk 0:00:08]} 45... hxg5
{[%clk 0:00:07.1]} 46. Bd5 {[%clk 0:00:08.5]} 46... a4 {[%clk 0:00:07.1]} 47.
Kc3 {[%clk 0:00:08.1]} 47... Bg3 {[%clk 0:00:06.3]} 48. Bxc4 {[%clk 0:00:08.2]}
48... Nxc4 {[%clk 0:00:06.4]} 49. Kxc4 {[%clk 0:00:08.4]} 49... Ke8 {[%clk
0:00:07.1]} 50. Kd5 {[%clk 0:00:07.8]} 50... Kf7 {[%clk 0:00:07.6]} 51. Ne5+
{[%clk 0:00:08.1]} 51... Kf6 {[%clk 0:00:07.7]} 52. Nd3 {[%clk 0:00:07.9]} 52...
Ke7 {[%clk 0:00:07.2]} 53. Kc4 {[%clk 0:00:07.9]} 53... Ke6 {[%clk 0:00:07.3]}
54. Nc5+ {[%clk 0:00:07]} 54... Ke5 {[%clk 0:00:07.8]} 55. Nxa4 {[%clk
0:00:07.1]} 55... Kf4 {[%clk 0:00:08.3]} 56. Nc5 {[%clk 0:00:07.5]} 56... Kxg4
{[%clk 0:00:08.5]} 57. b4 {[%clk 0:00:08.1]} 57... Kf3 {[%clk 0:00:08.6]} 58. a4
{[%clk 0:00:08.7]} 58... g4 {[%clk 0:00:09.1]} 59. a5 {[%clk 0:00:09.3]} 59...
Bb8 {[%clk 0:00:08.6]} 60. Nd7 {[%clk 0:00:09.4]} 60... Ba7 {[%clk 0:00:08.6]}
61. b5 {[%clk 0:00:09.9]} 61... g3 {[%clk 0:00:09]} 62. b6 {[%clk 0:00:10.5]}
62... Bxb6 {[%clk 0:00:09.2]} 63. axb6 {[%clk 0:00:10.6]} 63... g2 {[%clk
0:00:10.1]} 64. b7 {[%clk 0:00:11.3]} 64... g1=Q {[%clk 0:00:10.7]} 65. b8=Q
{[%clk 0:00:11.9]} 65... Qc1+ {[%clk 0:00:11.1]} 66. Kd5 {[%clk 0:00:11.9]}
66... Qd2+ {[%clk 0:00:11.1]} 67. Ke6 {[%clk 0:00:11.9]} 67... Qh6+ {[%clk
0:00:11.4]} 68. Nf6 {[%clk 0:00:11.2]} 68... Qe3+ {[%clk 0:00:11.9]} 69. Kf7
{[%clk 0:00:11.4]} 69... Qc3 {[%clk 0:00:10.9]} 70. Qb7+ {[%clk 0:00:11.4]}
70... Ke2 {[%clk 0:00:11]} 71. Qe4+ {[%clk 0:00:10.7]} 71... Qe3 {[%clk
0:00:11]} 72. Qc4+ {[%clk 0:00:10.7]} 72... Qd3 {[%clk 0:00:11.2]} 73. Qg4+
{[%clk 0:00:10.4]} 73... Qf3 {[%clk 0:00:11.9]} 74. Qg5 {[%clk 0:00:10.2]} 74...
Qb7+ {[%clk 0:00:11.9]} 75. Kg6 {[%clk 0:00:10.6]} 75... Qb1+ {[%clk 0:00:12.4]}
76. Kg7 {[%clk 0:00:10.7]} 76... Qb7+ {[%clk 0:00:12.6]} 77. Kh6 {[%clk
0:00:11.2]} 77... Qh1+ {[%clk 0:00:12.8]} 78. Nh5 {[%clk 0:00:11.7]} 78... Qc6+
{[%clk 0:00:12.7]} 79. Kh7 {[%clk 0:00:11.8]} 79... Qb7+ {[%clk 0:00:13]} 80.
Ng7 {[%clk 0:00:12.3]} 80... Qh1+ {[%clk 0:00:13]} 81. Kg6 {[%clk 0:00:12.8]}
81... Qe4+ {[%clk 0:00:13.2]} 82. Nf5 {[%clk 0:00:12.9]} 82... Qc6+ {[%clk
0:00:13.1]} 83. Kh5 {[%clk 0:00:13.4]} 83... Qh1+ {[%clk 0:00:13.3]} 84. Nh4
{[%clk 0:00:13.9]} 84... Qe4 {[%clk 0:00:12.6]} 85. Qf6 {[%clk 0:00:11.7]} 85...
Qd5+ {[%clk 0:00:11.8]} 86. Kh6 {[%clk 0:00:11.5]} 86... Qd2+ {[%clk 0:00:11.5]}
87. Kg6 {[%clk 0:00:11.6]} 87... Qd3+ {[%clk 0:00:11.3]} 88. Nf5 {[%clk
0:00:12.2]} 88... Qe4 {[%clk 0:00:11.4]} 89. Qg5 {[%clk 0:00:10.9]} 89... Qe6+
{[%clk 0:00:11.6]} 90. Kh5 {[%clk 0:00:11.5]} 90... Qe8+ {[%clk 0:00:12]} 91.
Kh4 {[%clk 0:00:11.8]} 91... Qe4+ {[%clk 0:00:12.4]} 92. Kh3 {[%clk 0:00:11.6]}
92... Qh1+ {[%clk 0:00:11.8]} 93. Kg4 {[%clk 0:00:10.6]} 93... Qf3+ {[%clk
0:00:10.9]} 94. Kh4 {[%clk 0:00:10.4]} 94... Qh1+ {[%clk 0:00:11.4]} 95. Kg4
{[%clk 0:00:09.6]} 95... Qf3+ {[%clk 0:00:11.6]} 96. Kh4 {[%clk 0:00:09.3]}
96... Qh1+ {[%clk 0:00:12]} 97. Kg3 {[%clk 0:00:08.3]} 97... Qg1+ {[%clk
0:00:12.2]} 98. Kf4 {[%clk 0:00:08]} 98... Qxg5+ {[%clk 0:00:11.6]} 99. Kxg5
{[%clk 0:00:08.7]} 1/2-1/2